Cogmind - Beta 17.1 @@@ ROGUE MODE // 2026.08.27 @ 04:54:55 Player: Godsword Result: Self-destructed Performance ------------- Evolutions (6) 3000 Regions Visited (9) 1800 Robots Destroyed (6) 30 Value Destroyed (150) 150 Prototype IDs (2) 40 Alien Tech Used (0) 0 Bonus (1739) 1739 TOTAL SCORE: 6759 Bonus ------- Pacifist 834 Follower Combat Kills 205 Entered Garrisons 200 Used RIF Installer 500 Cogmind --------- Core Integrity 1128/1150 Matter 186/300 Energy 375/375 System Corruption 7% Temperature Cool (0) Movement Flying (72) Ox1 Location -4/Armory Parts ------- > --- POWER (2) -------- Micro Nuclear Core Antimatter Reactor > --- PROPULSION (6) --- VTOL Module Improved Surge Thruster Improved Surge Thruster Improved Surge Thruster > --- UTILITY (9) ------ Power Amplifier Advanced Cooling System Small Storage Unit Gravity Neutralizer Hacking Suite System Shield System Shield System Shield System Shield > --- WEAPON (2) ------- (None) > --- INVENTORY (8) ---- VTOL Module VTOL Module Stasis Canceller Advanced Phase Shifter Improved Utility Shielding Improved Utility Shielding Improved Utility Shielding System Shield Peak State ------------ > --- POWER ------------ Micro Nuclear Core Antimatter Reactor > --- PROPULSION ------- VTOL Module VTOL Module Improved Surge Thruster Improved Surge Thruster Improved Surge Thruster Improved Surge Thruster > --- UTILITY ---------- Power Amplifier Advanced Cooling System Small Storage Unit Gravity Neutralizer Hacking Suite System Shield System Shield System Shield System Shield > --- WEAPON ----------- Long-range Missile Launcher > --- INVENTORY -------- VTOL Module VTOL Module Stasis Canceller Advanced Phase Shifter Improved Utility Shielding Improved Utility Shielding Improved Utility Shielding System Shield [Rating: 76] Favorites ----------- Power Micro Nuclear Core Engine Light Ion Engine Power Core Micro Nuclear Core Reactor Antimatter Reactor Propulsion VTOL Module Flight Unit VTOL Module Utility System Shield Device Advanced Heat Sink Storage Small Storage Unit Processor Advanced Signal Interpreter Hackware System Shield Protection Improved Utility Shielding Weapon Heavy Flail Energy Gun EM Pulse Gun Energy Cannon Light EM Pulse Cannon Launcher Mini Grenade Launcher Special Weapon Plasma Cutter Impact Weapon Heavy Flail Build | -11 -10 -9 -8 -7 -6 -6 -5 -4 -4 ------- Run | Yrd Mat Mat Mat Fac Fac Gar Fac Fac Arm Slots Evolved 12 | . . 2 2 2 2 . 2 2 . Power 1 | . . . . . 1 . . . . Propulsion 4 | . . 2 . 1 1 . . . . Utility 7 | . . . 2 1 . . 2 2 . Weapon . | . . . . . . . . . . Parts Attached 40 | 1 4 6 3 5 2 1 5 3 10 Power 5 | 1 . 1 1 . 1 . . 1 . Engine 2 | 1 . 1 . . . . . . . Core 2 | . . . 1 . 1 . . . . Reactor 1 | . . . . . . . . 1 . Propulsion 11 | . 2 2 . 1 1 . . . 5 Treads . | . . . . . . . . . . Leg . | . . . . . . . . . . Wheel . | . . . . . . . . . . Hover . | . . . . . . . . . . Flight 11 | . 2 2 . 1 1 . . . 5 Utility 18 | . 2 . 2 2 . 1 5 2 4 Device 6 | . . . . . . 1 1 1 3 Storage 2 | . 1 . . . . . 1 . . Processor 3 | . 1 . . 1 . . 1 . . Hackware 5 | . . . 2 1 . . 1 . 1 Protection 2 | . . . . . . . 1 1 . Artifact . | . . . . . . . . . . Weapon 6 | . . 3 . 2 . . . . 1 Energy Gun 1 | . . 1 . . . . . . . Energy Cannon 1 | . . 1 . . . . . . . Ballistic Gun . | . . . . . . . . . . Ballistic Cannon . | . . . . . . . . . . Launcher 2 | . . 1 . . . . . . 1 Special Weapon 1 | . . . . 1 . . . . . Impact Weapon 1 | . . . . 1 . . . . . Slashing Weapon . | . . . . . . . . . . Piercing Weapon . | . . . . . . . . . . Special Melee Weapon . | . . . . . . . . . . Unidentified Prototypes 1 | . . 1 . . . . . . . Parts Lost 7 | . 1 . . . . . . 1 5 Power 1 | . 1 . . . . . . . . Propulsion 5 | . . . . . . . . . 5 Utility . | . . . . . . . . . . Weapon 1 | . . . . . . . . 1 . Highest Loss Streak 2 | . 1 . . . . . . 1 2 To Critical Strikes . | . . . . . . . . . . Average Backups 7 | . 4 7 6 7 6 7 7 7 7 Power . | . . . . . . . . . . Propulsion 2 | . 1 1 1 2 2 2 2 2 2 Utility 4 | . 2 6 4 4 4 5 5 4 5 Weapon . | . . . . . . . . . . Tool/Special . | . . . . . . . . . . Unused Backups 13 | . . 3 1 2 2 . . . 5 Power 1 | . . . . 1 . . . . . Propulsion 2 | . . . . . . . . . 2 Utility 9 | . . 3 1 . 2 . . . 3 Weapon 1 | . . . . 1 . . . . . Tool/Special . | . . . . . . . . . . Average Slot Usage (%) 92 | . 58 78 96 99 99 99 99 93 91 Engine 1 | . 14 4 . . . . . . . Core 6 | . . . 8 7 12 13 11 3 3 Reactor 1 | . . . . . . . . 3 5 Flight 34 | . 24 39 36 38 40 39 35 31 30 Device 4 | . . . . . . 6 5 10 10 Storage 6 | . 10 11 9 7 6 6 7 5 5 Processor 4 | . 10 11 9 7 6 . . 5 4 Hackware 17 | . . . 14 22 20 20 22 21 21 Protection 1 | . . . . . . . 3 4 4 Energy Cannon 1 | . . 2 9 1 . . . . . Launcher 1 | . . 3 9 4 . . . . . Special Weapon 2 | . . . . 3 6 6 5 3 . Impact Weapon 3 | . . . . 6 6 6 5 5 3 Peak Build Rating 76 | 1 9 18 25 35 42 41 50 61 76 Average Rating 41 | . 7 14 24 34 40 40 47 57 62 On Entrance 27 | . 1 8 17 25 35 42 40 50 56 Avg Prop Armor Cover (%) 3 | . . 7 3 . 3 2 . . . Naked Turns . | . . . . . . . . . . Heaviest Build 33 | 3 8 11 15 15 20 24 23 30 33 Greatest Support 44 | 3 8 12 20 25 25 25 30 30 44 Greatest Overweight (x) . | . . . . . . . . . . Average Overweight (x) . | . . . . . . . . . . Largest Inventory Capacity 8 | 5 8 8 8 8 8 8 8 8 8 Average Capacity 7 | 5 7 8 8 8 8 8 8 8 8 Most Carried 8 | 1 7 8 8 8 8 8 8 8 8 Average Carried 7 | . 5 7 6 7 6 7 7 7 7 Final Capacity 8 | 5 8 8 8 8 8 8 8 8 8 Final Carried 8 | 1 7 8 8 8 8 8 8 8 8 Class Distribution -------------------- 85% | Hacker-Sprinter 14% | Sprinter Dominant Class ---------------- Sprinter | -10/Materials Sprinter | -9/Materials Hacker-Sprinter | -8/Materials Hacker-Sprinter | -7/Factory Hacker-Sprinter | -6/Factory Hacker-Sprinter | -6/Garrison Hacker-Sprinter | -5/Factory Hacker-Sprinter | -4/Factory Hacker-Sprinter | -4/Armory Resources | -11 -10 -9 -8 -7 -6 -6 -5 -4 -4 ----------- Run | Yrd Mat Mat Mat Fac Fac Gar Fac Fac Arm Matter Collected 546 | 208 . . . 19 17 . 98 79 125 Remotely . | . . . . . . . . . . Salvage Created 141 | . . . . 19 17 . 26 79 . Parts . | . . . . . . . . . . Haulers Intercepted . | . . . . . . . . . . Recyclers Shooed . | . . . . . . . . . . Parts Field Recycled . | . . . . . . . . . . Retrieved Matter . | . . . . . . . . . . Parts Self-Destructed . | . . . . . . . . . . Prevented . | . . . . . . . . . . Parts Restored . | . . . . . . . . . . Kills | -11 -10 -9 -8 -7 -6 -6 -5 -4 -4 ------- Run | Yrd Mat Mat Mat Fac Fac Gar Fac Fac Arm Combat Hostiles Destroyed 1 | . . . . . . . . 1 . Melee 1 | . . . . . . . . 1 . Classes Destroyed 3 | . . . . 1 . . 1 1 . Worker 2 | . . . . . . . 1 1 . Operator 3 | . . . . 1 1 . . 1 . Programmer 1 | . . . . . . . . 1 . Best Kill Streak 2 | . . . . 1 1 . 1 2 . Combat Bots Only 1 | . . . . . . . . 1 . Max Kills in Single Turn 1 | . . . . 1 1 . 1 1 . Gunslinging . | . . . . . . . . . . Exploded . | . . . . . . . . . . Melee 1 | . . . . . . . . 1 . Uniques/NPCs Destroyed . | . . . . . . . . . . Combat | -11 -10 -9 -8 -7 -6 -6 -5 -4 -4 -------- Run | Yrd Mat Mat Mat Fac Fac Gar Fac Fac Arm Hostile Shots Fired 79 | . 24 2 5 9 2 1 2 12 22 Missed 44 | . 8 1 5 6 2 1 1 7 13 Hits 35 | . 16 1 . 3 . . 1 5 9 Melee 4 | . . . . . . . . . 4 Projectile 31 | . 16 1 . 3 . . 1 5 5 AOE 3 | . . . . . . . . . 3 Critical Strikes 6 | . . . . . . . . 2 4 Actively Blocked 1 | . . . . . . . . 1 . Damage Taken 686 | . 196 15 . 16 . . 23 113 323 Core 124 | . 102 . . . . . . . 22 Absorbed by Shields . | . . . . . . . . . . Redirected to Shielding 50 | . . . . . . . . 26 24 Core Remaining (%) 94 | 100 59 100 100 100 . 100 100 . . Volleys Fired 3 | . . . . 1 . . . . 2 Largest 1 | . . . . 1 . . . . 1 Hottest 56 | . . . . 56 . . . . 43 Shots Fired 3 | . . . . 1 . . . . 2 Gun . | . . . . . . . . . . Cannon 1 | . . . . 1 . . . . . Launcher 2 | . . . . . . . . . 2 Special . | . . . . . . . . . . Kinetic . | . . . . . . . . . . Thermal . | . . . . . . . . . . Explosive 2 | . . . . . . . . . 2 Electromagnetic 1 | . . . . 1 . . . . . Robot Hit Streak 3 | . . . . 1 . . . . 3 Robot Miss Streak . | . . . . . . . . . . Penetration Max . | . . . . . . . . . . Secondary Targets . | . . . . . . . . . . Shots Hit Robots 14 | . . . . 2 1 . 1 7 3 Core Hits 2 | . . . . . . . . 1 1 Critical Kills 1 | . . . . . . . . 1 . Critical Parts Destroyed 1 | . . . . . . . . 1 . Critical Strikes 2 | . . . . . . . . 2 . Smash 2 | . . . . . . . . 2 . Melee Attacks 45 | . . . . 4 1 22 6 8 4 Impact 45 | . . . . 4 1 22 6 8 4 Slashing . | . . . . . . . . . . Piercing . | . . . . . . . . . . Sneak Attacks 3 | . . . . . . . 1 2 . Combat Hostiles . | . . . . . . . . . . Follow-up Attacks . | . . . . . . . . . . Damage Inflicted 1007 | . . . . 95 72 . 148 592 100 Guns . | . . . . . . . . . . Cannons 27 | . . . . 27 . . . . . Explosions 51 | . . . . . . . . . 51 Melee 929 | . . . . 68 72 . 148 592 49 Ramming . | . . . . . . . . . . Kinetic . | . . . . . . . . . . Thermal . | . . . . . . . . . . Explosive 51 | . . . . . . . . . 51 Electromagnetic 27 | . . . . 27 . . . . . Impact 929 | . . . . 68 72 . 148 592 49 Slashing . | . . . . . . . . . . Piercing . | . . . . . . . . . . Highest Corruption 6 | . . 3 . . . . 1 . 6 Average Corruption 2 | . . 3 . . . . 1 . 3 Corruption Purged . | . . . . . . . . . . Corruption Blocked . | . . . . . . . . . . Effects 6 | . . . . . . . 1 . 5 Matter Fused 2 | . . . . . . . . . 2 Heat Flow Errors 1 | . . . . . . . . . 1 Energy Discharges 2 | . . . . . . . 1 . 1 Data Loss (major) 1 | . . . . . . . . . 1 Overload Shots . | . . . . . . . . . . Overflow Damage 562 | . . . . 65 42 . 108 347 . Projectiles . | . . . . . . . . . . Explosions . | . . . . . . . . . . Melee 562 | . . . . 65 42 . 108 347 . Knockbacks 3 | . . . . . . . . 3 . Impact 3 | . . . . . . . . 3 . Kinetic . | . . . . . . . . . . Secondary . | . . . . . . . . . . Self-Inflicted Damage 15 | . . . . . . . . . 15 Shots 2 | . . . . . . . . . 2 Rammed . | . . . . . . . . . . Targets Rammed . | . . . . . . . . . . Kicked . | . . . . . . . . . . Crushed . | . . . . . . . . . . Highest Temperature 145 | . 9 . . 18 . . . . 145 Average Temperature 11 | . 4 . . 2 . . . . 49 Received Heat Transfer 165 | . 111 9 . . . . . 9 36 Siege Activations . | . . . . . . . . . . Martial Activations . | . . . . . . . . . . Shielding Activations . | . . . . . . . . . . Robots Disrupted . | . . . . . . . . . . Combat Hostiles . | . . . . . . . . . . Robots Corrupted 1 | . . . . . 1 . . . . Combat Hostiles . | . . . . . . . . . . Parts Fried 5 | . . . . 2 . . 1 2 . Impact Corruptions 17 | . . . . 3 2 . 2 10 . Robots Melted . | . . . . . . . . . . Combat Hostiles . | . . . . . . . . . . Parts Melted . | . . . . . . . . . . Heat Transferred . | . . . . . . . . . . Parts Sabotaged . | . . . . . . . . . . Parts Stolen . | . . . . . . . . . . Parts Stripped . | . . . . . . . . . . Power Chain Reactions . | . . . . . . . . . . Alert | -11 -10 -9 -8 -7 -6 -6 -5 -4 -4 ------- Run | Yrd Mat Mat Mat Fac Fac Gar Fac Fac Arm Maximum Alert Level 1 | . . . . . . . . . 1 Low Security (%) 97 | 100 100 100 100 100 100 100 100 100 91 Level 1 2 | . . . . . . . . . 8 Level 2 . | . . . . . . . . . . Level 3 . | . . . . . . . . . . Level 4 . | . . . . . . . . . . Level 5 . | . . . . . . . . . . High Security . | . . . . . . . . . . Max Security . | . . . . . . . . . . Peak Influence 216 | . . 36 29 44 5 33 60 35 216 Initial 19 | . . . 14 13 1 3 16 19 16 Average 24 | . . 8 10 16 . 17 12 15 68 Influence Increases 815 | . . 66 45 49 5 30 88 55 477 Destroy 0b10 Robot/C 140 | . . . . . . . . 20 120 Destroy 0b10 Robot/NC 25 | . . . . 5 5 . 5 10 . Destroy Leader 50 | . . . . . . . . 10 40 Allied During Kill 41 | . . . . . . . . . 41 Successful Hack 27 | . . 6 . 14 . . . . 7 Disable Machine 45 | . . . . 15 . . . . 30 Destroy Structure 82 | . . . . . . 30 8 . 44 Partial Spotted 120 | . . 30 15 15 . . 15 15 30 Lose Combat Pursuer 285 | . . 30 30 . . . 60 . 165 Influence Decreases 761 | . . 30 51 75 4 2 81 60 458 Entered New Map 101 | . . . 22 17 3 2 17 21 19 Time Decay 333 | . . 30 29 58 1 . 63 39 113 Lost Part 40 | . . . . . . . . . 40 Lost Ally 71 | . . . . . . . 1 . 70 Purge Threat 216 | . . . . . . . . . 216 Squads Dispatched 12 | . 2 . . 1 1 . 1 . 7 Investigation 4 | . 1 . . 1 1 . 1 . . Extermination 2 | . . . . . . . . . 2 Reinforcement 6 | . 1 . . . . . . . 5 Assault . | . . . . . . . . . . Garrison . | . . . . . . . . . . Intercept . | . . . . . . . . . . Searches Triggered . | . . . . . . . . . . Construction Impeded . | . . . . . . . . . . Haulers Reinforced . | . . . . . . . . . . Active Scanning Responses . | . . . . . . . . . . Cargo Convoy Interrupts . | . . . . . . . . . . Stealth | -11 -10 -9 -8 -7 -6 -6 -5 -4 -4 --------- Run | Yrd Mat Mat Mat Fac Fac Gar Fac Fac Arm Distress Signals 4 | . 2 . . . . . . . 2 Communications Jammed . | . . . . . . . . . . Distress Signals . | . . . . . . . . . . Times Spotted 67 | . 11 3 3 5 4 1 4 8 28 Peak Tracking Total 10 | . 10 5 3 2 3 3 5 8 10 Tactical Retreats 9 | . . 1 1 . . . 1 . 6 Traps | -11 -10 -9 -8 -7 -6 -6 -5 -4 -4 ------- Run | Yrd Mat Mat Mat Fac Fac Gar Fac Fac Arm Traps Triggered 7 | . 1 . . . . 2 2 . 2 Indirectly . | . . . . . . . . . . Trap Hack Attempts . | . . . . . . . . . . Triggered . | . . . . . . . . . . Disarmed . | . . . . . . . . . . Reprogrammed . | . . . . . . . . . . Reused . | . . . . . . . . . . Traps Extracted . | . . . . . . . . . . Installed . | . . . . . . . . . . Triggered . | . . . . . . . . . . Machines | -11 -10 -9 -8 -7 -6 -6 -5 -4 -4 ---------- Run | Yrd Mat Mat Mat Fac Fac Gar Fac Fac Arm Machines Disabled 3 | . . . . 1 . . . . 2 Max in Single Turn 1 | . . . . 1 . . . . 1 Machines Repaired . | . . . . . . . . . . Machines Dismantled . | . . . . . . . . . . Machines Sabotaged . | . . . . . . . . . . Overloaded Fab Kills . | . . . . . . . . . . Hacking | -11 -10 -9 -8 -7 -6 -6 -5 -4 -4 --------- Run | Yrd Mat Mat Mat Fac Fac Gar Fac Fac Arm Machines Accessed 16 | . . 2 2 2 4 . 1 1 4 Terminals 9 | . . 1 1 1 2 . . 1 3 Fabricators 2 | . . . . . . . 1 . 1 Repair Stations 1 | . . 1 . . . . . . . Recycling Units 1 | . . . . 1 . . . . . Scanalyzers 2 | . . . 1 . 1 . . . . Garrison Access 1 | . . . . . 1 . . . . Total Hacks 59 | . . 3 4 6 19 . 1 5 21 Successful 25 | . . 2 2 2 8 . . 1 10 Failed 34 | . . 1 2 4 11 . 1 4 11 Catastrophic 13 | . . . 1 2 3 . . 3 4 Database Lockouts . | . . . . . . . . . . Manual 18 | . . . 1 3 7 . . 4 3 Terminals 35 | . . 1 1 4 7 . . 5 17 Fabricators 5 | . . . . . . . 1 . 4 Repair Stations 2 | . . 2 . . . . . . . Recycling Units 2 | . . . . 2 . . . . . Scanalyzers 13 | . . . 3 . 10 . . . . Garrison Access 2 | . . . . . 2 . . . . Terminal Hacks 12 | . . 1 . 1 . . . 1 9 Level Access Points 1 | . . . . . . . . 1 . Alert Level 1 | . . . . . . . . . 1 Unreport Threat 3 | . . . . . . . . . 3 Locate Traps 1 | . . . . 1 . . . . . Reinforcement Status 1 | . . . . . . . . . 1 Recall Extermination 1 | . . . . . . . . . 1 Recall Reinforcements 2 | . . . . . . . . . 2 Zone Layout 2 | . . 1 . . . . . . 1 Fabricator Hacks . | . . . . . . . . . . Repair Station Hacks 1 | . . 1 . . . . . . . Refit 1 | . . 1 . . . . . . . Recycling Unit Hacks 1 | . . . . 1 . . . . . Retrieve Components 1 | . . . . 1 . . . . . Scanalyzer 9 | . . . 2 . 7 . . . . Insert Component 2 | . . . . . 2 . . . . Analyze 2 | . . . . . 2 . . . . Retrieve Study 5 | . . . 2 . 3 . . . . Garrison Access Hacks 1 | . . . . . 1 . . . . Unlock Access 1 | . . . . . 1 . . . . Unauthorized Hacks 1 | . . . . . . . . . 1 Terminals 1 | . . . . . . . . . 1 Assimilate 1 | . . . . . . . . . 1 Fabricators . | . . . . . . . . . . Repair Stations . | . . . . . . . . . . Recycling Units . | . . . . . . . . . . Scanalyzers . | . . . . . . . . . . Garrison Access . | . . . . . . . . . . Data Cores Recovered 3 | . . . . 1 1 . . 1 . Used 1 | . . . . . 1 . . . . Hacking Detections 11 | . . 1 2 2 2 . . 1 3 Full Trace Events 2 | . . . . 1 1 . . . . Feedback Events . | . . . . . . . . . . Feedback Blocked . | . . . . . . . . . . Robot Schematics Acquired . | . . . . . . . . . . Robots Built . | . . . . . . . . . . Authchips . | . . . . . . . . . . Time . | . . . . . . . . . . Total Robot Build Rating . | . . . . . . . . . . Part Schematics Acquired 1 | . . . . . 1 . . . . Parts Built . | . . . . . . . . . . Authchips . | . . . . . . . . . . Time . | . . . . . . . . . . Total Part Build Rating . | . . . . . . . . . . Part Studies Acquired 5 | . . . 2 . 3 . . . . Parts Repaired . | . . . . . . . . . . Time . | . . . . . . . . . . Parts Recycled . | . . . . . . . . . . Recycled Matter . | . . . . . . . . . . Retrieved Matter . | . . . . . . . . . . Retrieved Components 3 | . . . . 3 . . . . . Parts Scanalyzed 1 | . . . . . 1 . . . . Part Schematics Acquired 1 | . . . . . 1 . . . . Parts Damaged . | . . . . . . . . . . Bothacking | -11 -10 -9 -8 -7 -6 -6 -5 -4 -4 ------------ Run | Yrd Mat Mat Mat Fac Fac Gar Fac Fac Arm Used RIF Installer 1 | . . . . . . 1 . . . Robots Hacked . | . . . . . . . . . . Non-combat . | . . . . . . . . . . Combat . | . . . . . . . . . . Robot Hacks Applied . | . . . . . . . . . . Relay Couplers Released . | . . . . . . . . . . Fabnet Peak Effective % . | . . . . . . . . . . Robots Rewired 4 | . . . . . . . 1 . 3 Allies Hacked . | . . . . . . . . . . Hacks Repelled . | . . . . . . . . . . Allies | -11 -10 -9 -8 -7 -6 -6 -5 -4 -4 -------- Run | Yrd Mat Mat Mat Fac Fac Gar Fac Fac Arm Total Allies 5 | . . . . . . . 1 . 4 Largest Group 3 | . . . . . . . 1 . 3 Highest-Rated Group 204 | . . . . . . . 64 . 204 Highest-Rated Ally 68 | . . . . . . . 64 . 68 Total Orders . | . . . . . . . . . . Ally Attacks 14 | . . . . . . . . . 14 Total Damage 686 | . . . . . . . . . 686 Kills 6 | . . . . . . . . . 6 Allies Corrupted . | . . . . . . . . . . Allies Melted . | . . . . . . . . . . Intel | -11 -10 -9 -8 -7 -6 -6 -5 -4 -4 ------- Run | Yrd Mat Mat Mat Fac Fac Gar Fac Fac Arm Active Infowar (turns) 439 | . 55 91 96 128 69 . . . . Optics 439 | . 55 91 96 128 69 . . . . Robot Analysis Total . | . . . . . . . . . . Derelict Logs Recovered . | . . . . . . . . . . Drone Launches . | . . . . . . . . . . Drone Recoveries . | . . . . . . . . . . Exploration | -11 -10 -9 -8 -7 -6 -6 -5 -4 -4 ------------- Run | Yrd Mat Mat Mat Fac Fac Gar Fac Fac Arm Turns Passed 1144 | 18 70 91 96 128 69 126 180 99 267 Spaces Moved 2952 | 31 151 222 231 358 246 300 437 286 690 Core 45 | 31 14 . . . . . . . . Treads . | . . . . . . . . . . Legs . | . . . . . . . . . . Wheels . | . . . . . . . . . . Hover . | . . . . . . . . . . Flight 2907 | . 137 222 231 358 246 300 437 286 690 Fastest Speed 15 | 50 32 29 26 23 23 23 20 20 15 Average Speed 22 | 50 33 30 26 23 23 23 20 20 18 Slowest Speed 50 | 50 50 32 29 23 23 23 20 20 23 Overloaded Moves 30 | . . . . . . . . . 30 Propulsion Burnouts . | . . . . . . . . . . Robots Hopped 19 | . 4 . . . 2 . 7 2 4 Potential Cave-ins . | . . . . . . . . . . Cave-ins Triggered . | . . . . . . . . . . Exploration Rate (%) 18 | 4 32 21 21 11 8 41 10 9 32 Regions Visited 9 Branch Regions 1 Pre-discovered Areas . | . . . . . . . . . . Known Exits Taken 3 | . . . . . 1 . 1 1 . Unknown Exits Taken 5 | 1 1 1 1 1 . . . . . Scrap Searched . | . . . . . . . . . . Spaces Dug 25 | . . . . . . 20 5 . . Terrain Destroyed 48 | . . . . . . 20 5 . 23 Melee 25 | . . . . . . 20 5 . . Projectile . | . . . . . . . . . . AOE 23 | . . . . . . . . . 23 Terrain Rammed . | . . . . . . . . . . Walls Destroyed . | . . . . . . . . . . Machines Disabled . | . . . . . . . . . . Actions | -11 -10 -9 -8 -7 -6 -6 -5 -4 -4 --------- Run | Yrd Mat Mat Mat Fac Fac Gar Fac Fac Arm Total 3316 | 32 163 244 266 396 253 323 511 314 814 Wait 168 | . 6 4 28 20 . . 47 14 49 Move 2909 | 30 142 221 230 357 241 299 425 281 683 Hop 15 | . 4 . . . 2 . 4 2 3 Pick Up 41 | 1 7 8 3 5 4 . 4 3 6 Fast Attach 11 | 1 3 2 . 1 . . . . 4 Attach 19 | . 1 3 2 2 2 . 3 3 3 Detach 2 | . . . . . . 1 . 1 . Swap 15 | . . 1 1 2 . 1 3 . 7 Drop 23 | . . 5 2 4 2 . 1 2 7 Fire 3 | . . . . 1 . . . . 2 Melee 45 | . . . . 4 1 22 6 8 4 Ram . | . . . . . . . . . . Kick . | . . . . . . . . . . Crush . | . . . . . . . . . . Escape Stasis . | . . . . . . . . . . Rewire 64 | . . . . . . . 18 . 46 Trap . | . . . . . . . . . . Miscellaneous 1 | . . . . . 1 . . . . Route ------- -11/Scrapyard -10/Materials -9/Materials -8/Materials -7/Factory -6/Factory -6/Garrison -5/Factory (discovered 2 exits: *Fac / *Upp) -4/Factory (discovered 5 exits: Res x4 / *Arm) -4/Armory History --------- Turn | Location | Event 4 | -11/Scrapyard | Discovered new exit (range 16) 19 | -11/Scrapyard | Entered Materials 86 | -10/Materials | Discovered new exit (range 9) 89 | -10/Materials | Entered another Materials area 89 | -9/Materials | Evolved 2 slots: Propulsion x2 173 | -9/Materials | Discovered new exit (range 17) 180 | -9/Materials | Entered another Materials area 180 | -8/Materials | Evolved 2 slots: Utility x2 267 | -8/Materials | Discovered new exit (range 8) 276 | -8/Materials | Entered Factory 276 | -7/Factory | Evolved 2 slots: Propulsion x1, Utility x1 396 | -7/Factory | Discovered new exit (range 9) 404 | -7/Factory | Entered another Factory area 404 | -6/Factory | Evolved 2 slots: Power x1, Propulsion x1 472 | -6/Factory | Identified exit to Garrison 473 | -6/Factory | Entered Garrison 494 | -6/Garrison | Build established: Hacker-Sprinter 580 | -6/Garrison | Installed Relay Interface Framework 595 | -6/Garrison | Discovered new exit (range 10) 599 | -6/Garrison | Entered Factory 599 | -5/Factory | Evolved 2 slots: Utility x2 771 | -5/Factory | Discovered new exit (range 6) 772 | -5/Factory | Discovered new exit (range 15) 773 | -5/Factory | Identified exit to Factory 776 | -5/Factory | Identified exit to Upper Caves 779 | -5/Factory | Entered another Factory area 779 | -4/Factory | Evolved 2 slots: Utility x2 795 | -4/Factory | Identified exit to Research 871 | -4/Factory | Spotted B-86 Titan 876 | -4/Factory | Discovered new exit (range 12) 878 | -4/Factory | Identified exit to Armory 878 | -4/Factory | Entered Armory 1079 | -4/Armory | Lost 3 allies 1145 | -4/Armory | Self-destructed Last Messages --------------- 01117_ Dropped Imp. Reaction Control System. 01119_ Acquired Imp. Surge Thruster. 01123_ Slug penetrates Wall. 01133_ Penetrated by Slug. 01135_ System corrupted: Matter fused (-6). 01135_ O-24 Administrator sends out distress signal. 01135_ O-24 Administrator: "IFF HANDSHAKE FAILED. SECURING TERMINAL." 01136_ Acquired Lrn. Missile Launcher. 01136_ ALERT: Hostiles spotted, dispatching reinforcements to Terminal A013. 01137_ Critical hit (Burn: +37). 01137_ Penetrated by Slug. 01137_ Imp. Surge Thruster destroyed. 01137_ Fabricator disabled. 01141_ Slug penetrates Wall. 01142_ Dropped Lrn. Missile Launcher. 01143_ The unstable cave ceiling collapses. 01145_ VTOL Module+ destroyed. Map ----- +----------------------------------------------------+ | ??????????????????????????###?###?????# ## | | ????????????????????????### ??????# ## ! | | ????????????????????????? T" ??????# !! ## | | ?????????????????????????? " ??????# !!! ## | | ?????????????????????????? ??????# !!! ## | | ??????????????????????????? ??????# ###### | | ???????????????????????????# #??????# #????? | | ???????????????????????????# #??????# #????? | | ???????????????????????????# #??????# #????? | | ???????????????????????????# #??????# #????? | | ???????????????????????????# #########+######### | | ???????????????????????????# | | ???????????????????????????# ! | | ???????????????????????????# ^ | | ?????????????????????????####+########### | | ################?????????# ## =%* | | # #?????????# ## "" | | "" # #?????????# ]]] # """ | | T" + " " #?????????# ]]] "F | | "" # " " #?????????# ]]] ## """ | | !!# " " #?????????# ### """ | | ! # " =" ! #?????????# "" " #?# """ | | # % #?????????# "F " #?# | | * ######?????????# """"" #?# | | % ################# # # #?######## | | / !=! = p @ #????????? | | = #????????? | | % [ #????????? | | #;###########################????????? | | # # # ###??????????????????????????????????? | | ## *= #????????????????????????????????????? | | ###/%"" "" #????????????????????????????????????? | | #?# """ " " #????????????????????????????????????? | | #?# """ "" #????????????????????????????????????? | | ??# #????????????????????????????????????? | | ??# ! #????????????????????????????????????? | | ??# | ! #????????????????????????????????????? | | ??# #????????????????????????????????????? | | ??###" "#####????????????????????????????????????? | | ????#"T"#????????????????????????????????????????? | | ????#"""#????????????????????????????????????????? | | ????#####????????????????????????????????????????? | | ?????????????????????????????????????????????????? | | ?????????????????????????????????????????????????? | | ?????????????????????????????????????????????????? | | ?????????????????????????????????????????????????? | | ?????????????????????????????????????????????????? | | ?????????????????????????????????????????????????? | | ?????????????????????????????????????????????????? | | | +----------------------------------------------------+ Best States ------------- Heat Dissipation 74 Energy Generation 37 Energy Capacity 410 Matter Stores 298 Matter Capacity 300 Sight Range 22 Terrain Scan Density 10 Power Amplification 20 Additional Mass Support 12 Utility Shielding 66 Evasion (%) 76 Offensive Hacking 10 Defensive Hacking 40 Item Schematics ----------------- Cesium-ion Thruster | -6/Factory | Scanalyzed Robot Schematics ------------------ None Fabricated ------------ Nothing Repaired ---------- Nothing Studied --------- VTOL Module | -8/Materials | Hacked Lgt. Nuclear Core | -8/Materials | Hacked Mic. Nuclear Core | -6/Factory | Hacked Cesium-ion Thruster | -6/Factory | Hacked Xenon Bombardment Thruster | -6/Factory | Hacked Alien Tech Used ----------------- None Achievements -------------- Safety First Challenges ------------ None Game ------ Seed RefineryTeleporterStreamer Manual? 0 Play Time 00:48:23 Cumulative 1.7 hours Start 2026.08.26 @ 19:07:15 End 2026.08.27 @ 04:54:55 Sessions 1 Manual Loads 0 Difficulty Rogue Special Mode None Game No. 9 Rogue 9 Adventurer 0 Explorer 0 Win Type - Total 0 Types 0/0/0/0/0/0/0/0/0/0 Lore% 0 Gallery% 6 Achievement% 41 Wizard Run 0 Options --------- Layout 2 ASCII 0 Keyboard 0 Movement Mouse Keybinds 0 Fullscreen 1 Font 16/SmallcapsGlow Map View 50x49 Zoom Use 0% Tactical HUD 1 Map Filters NONE Filters NONE Steam SD RUN: a74a833a-d0fb-4898-8c45-2319ff06e6f1